bitfinex/quotes_ETHUSD_20210701
["timestamp","ask_amount","ask_price","bid_price","bid_amount"]
[1625167277543,27.35,2098.5,2097.4,3.73005685]
[1625167277638,15.0,2098.4,2097.4,3.73005685]
[1625167277737,19.7537,2098.4,2097.1,4.1500245]
[1625167277885,0.33510503,2098.3,2097.1,4.1500245]
[1625167278092,0.14,2098.2,2097.1,4.1500245]
[1625167278283,13.12683693,2098.4,2097.1,4.1500245]
[1625167278535,9.90183693,2098.4,2097.1,4.1500245]
[1625167278636,9.7637,2098.4,2097.1,4.1500245]
[1625167278786,5.01,2098.4,2097.1,9.1138245]
[1625167279035,9.52999,2098.5,2097.1,9.1138245]
[1625167279137,7.14649,2098.6,2097.1,16.2617345]
[1625167279335,7.14649,2098.6,2097.1,24.2617345]
[1625167279435,7.14649,2098.6,2097.1,24.50829783]
[1625167279786,0.15,2098.8,2097.3,3.572802]
[1625167279883,0.00786656,2098.9,2097.3,3.572802]
[1625167279981,2.04,2099.0,2097.3,8.582802]
[1625167280130,20.8554,2099.2,2097.3,3.722802]
[1625167280232,17.18591,2099.2,2098.2,7.14421]
[1625167280334,15.0,2099.1,2097.9,9.52627]
[1625167280434,15.2,2099.1,2097.9,9.52627]
[1625167280633,17.546,2099.1,2097.9,9.52627]
[1625167280930,2.262,2099.0,2097.9,9.52627]
[1625167281232,2.13,2099.0,2097.9,9.52627]
[1625167281330,2.31,2099.0,2097.9,9.52627]
[1625167281432,0.18,2099.0,2098.2,7.14473]
[1625167281535,14.53625,2099.4,2098.2,7.14473]
[1625167281684,29.53625,2099.4,2098.2,7.14473]
[1625167281782,0.2,2099.3,2098.2,7.14473]
[1625167281931,2.702,2099.3,2098.2,7.14473]
[1625167282078,0.18,2099.2,2098.2,7.14473]
[1625167282530,2.19,2099.2,2098.2,7.14473]
[1625167282730,2.232,2099.2,2098.2,7.14473]
[1625167282982,2.052,2099.2,2098.2,7.14473]
[1625167283080,12.15433,2099.3,2098.2,11.47053]
[1625167283233,0.18,2099.1,2098.2,11.47053]
[1625167283332,0.18,2099.1,2098.2,16.48053]
[1625167283531,2.034,2099.3,2098.2,16.48053]
[1625167283880,2.058,2099.3,2098.2,16.48053]
[1625167284081,2.022,2099.3,2098.2,16.48053]
[1625167284383,9.52625,2099.4,2098.2,16.48053]
[1625167284483,7.14454,2099.1,2098.2,16.48053]
[1625167284684,9.52625,2099.4,2098.2,16.48053]
[1625167284845,2.214,2099.6,2098.2,16.48053]
[1625167284946,66.09698,2099.7,2098.2,16.48053]
[1625167285145,64.02098,2099.7,2098.2,16.48053]
[1625167285396,52.1103,2099.7,2098.2,16.48053]
[1625167285646,59.25272,2099.7,2098.2,16.48053]
[1625167285947,2.148,2099.6,2098.2,16.48053]
[1625167286198,2.118,2099.6,2098.2,16.48053]
[1625167286526,2.226,2099.6,2098.2,16.48053]
[1625167286629,0.1,2099.5,2098.2,16.48053]
[1625167286731,7.14421,2099.1,2098.2,16.48053]
[1625167287678,2.088,2099.4,2098.2,16.48053]
[1625167287778,16.58082,2099.5,2098.2,16.48053]
[1625167288128,16.58682,2099.5,2098.2,16.48053]
[1625167288331,14.53482,2099.5,2098.2,16.48053]
[1625167288774,7.14357,2099.3,2098.2,16.43053]
[1625167288876,2.034,2099.4,2098.2,16.43053]
[1625167288979,2.094,2099.4,2098.2,16.43053]
[1625167289074,2.178,2099.4,2098.2,16.43053]
[1625167289233,2.178,2099.4,2098.2,9.3358]
[1625167289474,0.16,2099.3,2098.2,9.3358]
[1625167289829,0.16,2099.3,2098.2,5.01]
[1625167290077,0.16,2099.3,2097.7,91.1267038]
[1625167290227,2.16,2099.4,2097.7,91.1267038]
[1625167290335,7.14489,2098.9,2098.1,7.14442]
[1625167290477,9.52606,2099.2,2098.1,7.14442]
[1625167290580,9.52606,2099.2,2098.1,12.15442]
[1625167291496,2.016,2099.4,2098.1,12.15442]
[1625167291847,14.53482,2099.5,2098.1,12.15442]
[1625167291948,9.52482,2099.5,2098.1,12.15442]
[1625167292046,52.1103,2099.7,2098.2,2.58686682]
[1625167292298,57.1203,2099.7,2098.2,7.59686682]
[1625167292445,57.1203,2099.7,2098.2,19.65276682]
[1625167292446,52.1103,2099.7,2098.2,19.65276682]
[1625167292594,52.1103,2099.7,2098.2,11.65276682]
[1625167292942,52.2228974,2099.7,2098.2,11.65276682]
[1625167293376,59.3649774,2099.7,2098.8,7.14208]
[1625167293478,17.8436774,2099.7,2098.8,7.14208]
[1625167293725,7.2546774,2099.7,2098.8,7.14208]
[1625167294223,7.2546774,2099.7,2098.8,12.15208]
[1625167294326,7.2546774,2099.7,2098.8,7.14208]
[1625167294426,0.1125974,2099.7,2098.8,15.44078]
[1625167297537,0.1125974,2099.7,2098.4,63.7381624]
[1625167297641,0.1125974,2099.7,2098.3,3.7207]
[1625167297825,0.1125974,2099.7,2098.1,3.5709]
[1625167297826,20.0,2099.5,2098.1,2.58686682]
[1625167297905,15.26096025,2099.4,2098.1,2.58686682]
[1625167298000,20.0,2099.0,2098.1,2.58686682]
[1625167298101,25.18869958,2098.9,2098.1,2.58686682]
[1625167298199,30.29952628,2098.9,2098.1,2.58686682]
[1625167298355,4.76561,2098.5,2097.1,4.1500245]
[1625167298451,15.0,2098.4,2097.1,4.1500245]
[1625167298606,7.14945,2097.8,2097.1,4.1500245]
[1625167298704,15.12760072,2097.7,2097.1,4.1500245]
[1625167298801,3.6937,2097.7,2097.1,4.1500245]
[1625167298901,8.8537,2097.7,2097.1,4.1500245]
[1625167299103,2.088,2097.6,2097.1,4.1500245]
[1625167299353,7.15064,2097.5,2097.1,4.1500245]
[1625167299892,7.19067,2097.4,2097.1,4.1500245]
[1625167300131,0.04,2097.4,2097.1,4.1500245]
[1625167300235,3.6437,2097.7,2097.1,4.1500245]
[1625167300333,18.6437,2097.7,2097.1,4.1500245]
[1625167300440,8.6537,2097.7,2097.1,4.1500245]
[1625167300538,3.8682,2097.9,2097.1,4.1500245]
[1625167300539,2.112,2097.9,2097.1,4.1500245]
[1625167300685,2.02685449,2098.5,2097.1,4.1000245]
[1625167300781,2.1738099,2098.5,2097.1,4.1000245]
[1625167300936,0.15844869,2098.5,2097.2,0.04]
[1625167301035,0.15782792,2098.5,2097.7,7.14688]
[1625167301136,0.15,2098.5,2097.7,7.14688]
[1625167301238,2.046,2098.7,2097.7,7.14688]
[1625167301785,0.15,2099.1,2097.7,7.14688]
[1625167301786,2.388,2099.1,2097.7,7.14688]
[1625167302033,2.352,2099.1,2097.7,7.14688]
[1625167302137,35.0,2099.0,2097.7,7.14688]
[1625167302289,10.15,2098.9,2097.7,7.14688]
[1625167302377,15.0,2098.8,2097.7,7.14688]
[1625167302628,0.15,2098.7,2097.7,7.14688]
[1625167302829,2.262,2098.7,2097.7,7.14688]
[1625167303134,15.0,2098.6,2097.5,9.52918]
[1625167303232,15.13868043,2098.6,2097.5,9.52918]
[1625167303334,0.25,2098.5,2097.5,9.52918]
[1625167303434,3.3563,2098.5,2097.5,9.52918]
[1625167303530,8.3663,2098.5,2097.5,9.52918]
[1625167303782,10.1571,2098.5,2097.5,9.52918]
[1625167303882,9.2532,2098.5,2097.5,9.52918]
[1625167304130,9.13103962,2098.5,2097.5,9.52918]
[1625167304383,16.27884962,2098.5,2097.5,9.52918]
[1625167304527,9.13103962,2098.5,2097.5,9.52918]
[1625167304727,4.12103962,2098.5,2097.5,9.52918]
[1625167305678,3.97103962,2098.5,2097.5,9.52918]
[1625167306180,8.98103962,2098.5,2097.5,9.52918]
[1625167306282,3.97103962,2098.5,2097.5,9.52918]
[1625167306384,3.1063,2098.5,2097.5,9.52918]
[1625167306795,3.11697985,2098.5,2097.1,7.83092632]
[1625167306944,3.25726147,2098.5,2097.8,7.14541]
[1625167307095,3.1063,2098.5,2097.8,7.14541]
[1625167309038,2.72,2098.6,2097.8,7.14541]
[1625167309141,0.9764,2098.6,2097.8,7.14541]
[1625167309241,9.175,2099.0,2097.8,7.14541]
[1625167309389,9.175,2099.0,2097.7,9.52721]
[1625167309588,0.1,2098.9,2097.7,9.52721]
[1625167309738,11.197,2099.0,2097.7,9.52721]
[1625167309990,11.191,2099.0,2097.7,9.52721]
[1625167310091,7.14603,2098.7,2097.7,9.37721]
[1625167310289,12.15603,2098.7,2097.7,9.37721]
[1625167310390,7.14603,2098.7,2097.7,9.37721]
[1625167310540,12.15603,2098.7,2097.7,9.37721]
[1625167310642,7.14603,2098.7,2097.4,9.52804]
[1625167310745,12.15603,2098.7,2097.4,9.52804]
[1625167310846,0.16,2098.6,2097.4,9.52804]
[1625167311309,2.1,2098.6,2097.4,9.52804]
[1625167311416,7.14749,2098.3,2097.1,17.35836961]
[1625167311509,11.12369,2098.3,2097.1,17.35836961]
[1625167311610,11.12369,2098.3,2097.1,13.6274945]
[1625167311763,16.13369,2098.3,2097.1,13.6274945]
[1625167312009,16.13369,2098.3,2097.1,17.3586986]
[1625167312507,11.12369,2098.3,2097.1,17.3586986]
[1625167312611,3.9762,2098.3,2097.1,17.3586986]
[1625167312708,3.9762,2098.3,2097.2,0.12]
[1625167312862,2.07,2098.7,2097.2,0.12]
[1625167312963,4.07,2098.7,2097.2,0.12]
[1625167313115,2.0,2098.7,2097.3,0.25]
[1625167313208,2.0,2098.7,2097.3,5.04825031]
[1625167313309,2.0,2098.7,2097.3,5.19825031]
[1625167313410,10.2915,2098.9,2097.3,10.20825031]
[1625167313557,10.2915,2098.9,2097.4,0.08]
[1625167313705,10.2915,2098.9,2098.1,7.1443]
[1625167313801,7.14466,2099.1,2098.1,7.1443]
[1625167314005,10.93136,2099.1,2098.1,7.1443]
[1625167314101,3.7867,2099.1,2097.8,9.52593]
[1625167314252,2.16,2099.0,2097.8,9.52593]
[1625167314398,2.136,2099.0,2097.8,9.52593]
[1625167314705,8.5364,2099.1,2097.8,9.52593]
[1625167314947,4.788,2099.1,2097.8,9.52593]
[1625167315044,4.788,2099.1,2097.9,0.06]
[1625167315246,4.788,2099.1,2097.8,9.52593]
[1625167315247,6.4307,2099.1,2097.8,9.52593]
[1625167315346,6.4307,2099.1,2097.1,28.1670986]
[1625167315347,15.0,2099.0,2097.1,28.1670986]
[1625167315442,22.8003915,2099.0,2097.1,7.8312286]
[1625167315544,0.24255269,2098.9,2097.1,7.8312286]
[1625167315694,0.16,2098.8,2097.1,4.1000245]
[1625167315832,0.23143279,2098.7,2097.1,4.1000245]
[1625167315983,0.38143279,2098.7,2097.1,7.83081909]
[1625167316087,9.52996,2098.4,2097.1,7.83081909]
[1625167316179,15.0,2098.3,2097.1,7.83081909]
[1625167316332,15.27,2098.3,2097.1,4.1000245]
[1625167316428,20.28,2098.3,2097.1,4.1000245]
[1625167316584,22.638,2098.3,2097.1,4.1000245]
[1625167316782,2.202,2098.2,2097.1,4.1000245]
[1625167317083,7.14857,2097.7,2097.1,4.1000245]
[1625167317279,10.78377,2097.7,2097.1,4.1000245]
[1625167317481,15.79377,2097.7,2097.1,4.1000245]
[1625167318055,10.78377,2097.7,2097.1,4.1000245]
[1625167318257,3.6352,2097.7,2097.1,4.1000245]
[1625167319503,0.11268309,2097.6,2097.1,4.1000245]
[1625167320324,0.11268309,2097.6,2097.1,2.45e-05]
[1625167320330,7.26176309,2097.6,2097.1,2.45e-05]
[1625167320414,0.12,2097.5,2097.1,2.45e-05]
[1625167320765,2.154,2097.5,2097.1,2.45e-05]
[1625167321067,0.12,2097.5,2097.1,2.45e-05]
[1625167321265,7.14958,2097.5,2097.1,2.45e-05]
[1625167321718,7.14958,2097.5,2096.7,0.07206937]
[1625167322220,12.15958,2097.5,2096.7,0.07206937]
[1625167322319,2.034,2097.4,2096.7,0.07206937]
[1625167322546,0.1,2097.3,2096.7,0.07206937]
[1625167323347,8.5537,2097.4,2096.7,0.07206937]
[1625167323496,6.5137,2097.4,2096.7,0.07206937]
[1625167323701,1.5037,2097.4,2096.7,0.07206937]
[1625167323796,6.5137,2097.4,2096.7,0.07206937]
[1625167323948,6.5137,2097.4,2096.2,0.33078631]
[1625167323949,7.15093,2097.1,2096.2,0.33078631]
[1625167324052,4.791,2097.1,2096.2,0.33078631]
[1625167324151,24.801,2097.1,2096.2,0.33078631]
[1625167324401,9.801,2097.1,2096.2,0.33078631]
[1625167324553,2.16,2097.0,2096.2,0.33078631]
[1625167324800,2.01,2097.0,2096.2,0.33078631]
[1625167324995,2.046,2097.0,2096.2,0.33078631]
[1625167325344,2.04,2097.0,2096.2,0.33078631]
[1625167325549,2.07,2097.0,2096.2,0.33078631]
[1625167325798,2.058,2097.0,2096.2,0.33078631]
[1625167326048,2.016,2097.0,2096.2,0.28078631]
[1625167326301,2.028,2097.0,2096.2,0.28078631]
[1625167326450,9.17934,2097.0,2096.2,0.28078631]
[1625167327091,9.19134,2097.0,2096.2,0.28078631]
[1625167327193,9.19134,2097.0,2096.2,0.28846647]
[1625167327345,7.15134,2097.0,2096.2,0.28846647]
[1625167327945,6.97372123,2097.1,2096.2,0.28846647]
[1625167328194,6.91372123,2097.1,2096.2,0.28846647]
[1625167328396,4.90372123,2097.1,2096.2,0.28846647]
[1625167328504,0.11272123,2097.1,2096.3,0.04]
[1625167328749,1.23e-06,2097.1,2096.2,16.57086647]
[1625167328852,1.23e-06,2097.1,2096.6,7.14893]
[1625167329096,1.23e-06,2097.1,2096.6,12.15893]
[1625167329342,1.23e-06,2097.1,2096.7,2.90688126]
[1625167329492,13.94976,2098.6,2096.8,0.17841622]
[1625167329842,38.84552,2098.7,2097.5,7.14579]
[1625167330006,28.25542,2098.7,2097.5,7.14579]
[1625167330206,17.31182,2098.7,2097.5,11.21549]
[1625167330309,9.20372,2098.7,2097.5,11.21549]
[1625167330406,14.21372,2098.7,2097.5,9.71549]
[1625167331061,14.21972,2098.7,2097.5,4.0697]
[1625167331160,29.21972,2098.7,2097.2,9.52805]
[1625167331259,33.62622,2098.7,2097.2,9.52805]
[1625167331357,0.16,2098.6,2097.2,9.52805]
[1625167331595,11.4985,2098.7,2097.2,9.52805]
[1625167331891,3.5734714,2098.5,2097.2,9.52805]
[1625167332091,8.5834714,2098.5,2097.2,9.52805]
[1625167332489,8.5334714,2098.5,2097.2,9.52805]
[1625167332741,8.64612897,2098.5,2097.2,9.52805]
[1625167333394,7.14645,2098.3,2097.2,9.52805]
[1625167333592,12.15645,2098.3,2097.2,9.52805]
[1625167334645,7.14645,2098.3,2097.2,9.52805]
[1625167335859,46.21857,2098.2,2097.2,9.52805]
[1625167335955,20.0,2098.1,2096.7,11.95459905]
[1625167336112,25.31996101,2098.0,2096.4,2.01]
[1625167336208,25.31996101,2098.0,2096.4,0.01]
[1625167336209,5.02121686,2097.9,2096.4,0.01]
[1625167336307,15.28971461,2097.8,2096.4,0.01]
[1625167336407,0.01946928,2097.7,2096.4,0.01]
[1625167336559,3.5758169,2097.2,2096.4,0.01]
[1625167336659,15.0,2097.1,2096.4,0.01]
[1625167336758,15.13492286,2097.1,2096.4,0.01]
[1625167336857,20.01780753,2097.1,2096.4,0.01]
[1625167337012,7.15231,2096.8,2096.4,0.01]
[1625167337107,10.7284271,2096.8,2096.4,0.01]
[1625167337260,17.1425271,2096.8,2096.4,0.01]
[1625167337659,19.1585271,2096.8,2096.4,0.01]
[1625167337771,3.57604,2096.7,2096.4,0.01]
[1625167337865,1.4041,2096.8,2096.4,0.01]
[1625167338341,1.4041,2096.8,2096.4,0.12272436]
[1625167338401,0.14752749,2097.5,2096.4,0.12272436]
[1625167338697,5.16098835,2097.6,2096.4,0.12272436]
[1625167338799,0.14229951,2097.6,2096.4,0.12272436]
[1625167338897,0.14229951,2097.6,2096.4,3.69712356]
[1625167339051,20.45563409,2097.7,2096.9,7.15015]
[1625167339147,23.6961,2097.9,2096.9,7.15015]
[1625167339250,12.8563,2097.9,2096.9,7.15015]
[1625167339449,2.01,2097.8,2096.9,7.15015]
[1625167339653,2.016,2097.8,2096.9,7.15015]
[1625167339949,10.8403,2097.9,2096.9,7.15015]
[1625167340050,0.15,2098.0,2096.9,7.15015]
[1625167340154,0.15,2098.0,2096.9,7.10015]
[1625167340731,2.118,2098.1,2096.9,7.10015]
[1625167341027,2.016,2098.1,2096.9,7.10015]
[1625167341277,13.6688,2098.2,2096.9,7.10015]
[1625167341880,5.01,2098.2,2096.9,7.10015]
[1625167342031,17.1364,2098.4,2096.9,7.10015]
[1625167342132,12.1264,2098.4,2096.9,7.10015]
[1625167342331,12.0784,2098.4,2096.9,7.10015]
[1625167342580,12.0724,2098.4,2096.9,7.10015]
[1625167342843,10.0444,2098.4,2096.9,7.10015]
[1625167343493,22.2022,2098.4,2096.9,7.10015]
[1625167343700,15.0544,2098.4,2096.5,11.0839]
[1625167343798,0.19554762,2098.3,2096.5,11.0839]
[1625167343899,0.19554762,2098.3,2096.6,0.06]
[1625167344753,0.19554762,2098.3,2096.5,16.0939]
[1625167345127,0.19554762,2098.3,2097.4,7.14746]
[1625167345227,0.00778582,2098.3,2097.4,7.14746]
[1625167345323,10.23253231,2098.4,2097.3,9.52995]
[1625167345477,2.076,2098.3,2097.3,9.52995]
[1625167345721,2.142,2098.3,2097.3,9.52995]
[1625167346073,2.13,2098.3,2097.3,9.52995]
[1625167346273,2.076,2098.3,2097.3,9.52995]
[1625167346531,10.47218,2098.1,2097.3,9.52995]
[1625167347395,10.47218,2098.1,2097.0,9.5309]
[1625167347400,81.36857,2098.0,2096.9,0.00768016]
[1625167347500,7.15067,2097.5,2096.9,0.00768016]
[1625167347595,15.0,2097.4,2096.9,0.00768016]
[1625167347697,15.15,2097.4,2096.9,0.00768016]
[1625167347794,20.16,2097.4,2096.9,0.00768016]
[1625167347898,0.16,2097.3,2096.9,0.00768016]
[1625167348096,2.914,2097.3,2096.9,0.00768016]
[1625167348298,0.16,2097.2,2096.9,0.00768016]
[1625167348402,15.16,2097.2,2096.9,0.00768016]
[1625167348597,20.17,2097.2,2096.9,0.00768016]
[1625167348700,27.32222,2097.2,2096.9,0.00768016]
[1625167348900,2.77,2097.1,2096.9,0.00768016]
[1625167349097,7.648,2097.1,2096.9,0.00768016]
[1625167349198,2.638,2097.1,2096.9,0.00768016]
[1625167349297,7.648,2097.1,2096.9,0.00768016]
[1625167349397,0.16,2097.0,2096.9,0.00768016]
[1625167349499,3.1969,2097.0,2096.9,0.00768016]
[1625167349611,8.2069,2097.0,2096.9,0.00768016]
[1625167349714,10.5349,2097.0,2096.9,0.00768016]
[1625167349918,10.5169,2097.0,2096.9,0.00768016]
[1625167350014,5.5069,2097.0,2096.9,0.00768016]
[1625167350213,3.0369,2097.0,2096.9,0.00768016]
[1625167351367,8.0469,2097.0,2096.9,0.00768016]
[1625167351569,10.2369,2097.0,2096.9,0.00768016]
[1625167351718,10.3969,2097.0,2096.9,0.00768016]
[1625167351880,10.4989,2097.0,2096.9,0.00768016]
[1625167352030,10.4749,2097.0,2096.9,0.00768016]
[1625167352284,10.4269,2097.0,2096.9,0.00768016]
[1625167352583,10.5889,2097.0,2096.9,0.00768016]
[1625167352885,5.2729,2097.0,2096.9,0.00768016]
[1625167352985,5.1129,2097.0,2096.9,0.00768016]
[1625167353089,3.0369,2097.0,2096.9,0.00768016]
[1625167353438,10.1229,2097.0,2096.9,0.00768016]
[1625167353541,25.1229,2097.0,2096.0,0.00913395]
[1625167353640,20.0,2096.7,2096.0,0.00913395]
[1625167353743,35.0,2096.6,2096.0,0.00913395]
[1625167353841,7.15593,2096.5,2096.0,0.00913395]
[1625167353944,15.0,2096.4,2094.4,10.41660542]
[1625167354140,7.71185881,2096.3,2094.4,10.41660542]
[1625167354231,0.3144488,2096.1,2094.5,3.73595253]
[1625167354626,0.1,2096.0,2094.4,10.41660542]
[1625167354726,0.25568502,2095.9,2094.4,10.41660542]
[1625167354827,15.25568502,2095.9,2094.4,10.41660542]
[1625167354926,15.40568502,2095.9,2094.5,3.7363825]
[1625167355078,20.01568502,2095.9,2094.5,3.7363825]
[1625167355175,2.022,2095.8,2094.5,3.7363825]
[1625167355332,3.9655,2095.5,2094.5,3.7363825]
[1625167355431,3.9655,2095.5,2094.2,0.02208222]
[1625167355580,8.9755,2095.5,2094.2,0.02208222]
[1625167355676,3.9655,2095.5,2094.2,0.02208222]
[1625167355779,14.85568502,2095.4,2094.2,0.02208222]
[1625167355877,11.2881,2095.5,2094.2,0.02208222]
[1625167355977,7.098,2095.4,2094.2,0.02208222]
[1625167356366,11.2881,2095.5,2094.2,0.02208222]
[1625167356421,13.43503,2095.5,2094.2,7.17923222]
[1625167356524,18.44503,2095.5,2094.2,7.17923222]
[1625167356724,18.44503,2095.5,2093.6,18.791472]
[1625167356824,0.01099568,2095.4,2093.8,5.01]
[1625167356923,0.01099568,2095.4,2093.6,31.801472]
[1625167357126,0.01099568,2095.4,2093.6,13.01]
[1625167357228,0.01099568,2095.4,2093.3,14.55787237]
[1625167357333,0.08217694,2095.3,2093.4,11.9273]
[1625167357430,9.54651,2095.0,2093.3,21.71783237]
[1625167357577,0.00990886,2094.9,2093.2,5.06032087]
[1625167357775,3.19571996,2095.0,2093.3,3.73782613]
[1625167357880,0.01324491,2094.9,2093.3,3.73782613]
[1625167358024,8.20571996,2095.0,2093.3,3.73782613]
[1625167358126,8.20571996,2095.0,2093.2,5.06032087]
[1625167358127,10.29971996,2095.0,2093.2,5.06032087]
[1625167358329,0.02262346,2094.9,2093.2,5.06032087]
[1625167358425,2.05662346,2094.9,2093.2,5.06032087]
[1625167358634,0.01085323,2094.7,2092.9,10.55081087]
[1625167358727,0.01085323,2094.7,2092.9,9.69589]
[1625167359080,1.22470132,2094.8,2093.0,0.06]
[1625167359226,1.22470132,2094.8,2093.0,2.36661251]
[1625167359324,0.77470132,2094.8,2093.0,2.36661251]
[1625167359525,7.15868,2094.7,2093.3,9.5447]
[1625167360176,4.3333622,2094.7,2093.3,9.5447]
[1625167360427,0.3,2094.6,2092.8,20.76827215]
[1625167360677,0.3,2094.6,2092.9,0.15]
[1625167360924,7.45903,2094.6,2093.3,9.5447]
[1625167361022,12.46903,2094.6,2093.3,9.5447]
[1625167361117,7.15903,2094.6,2093.3,17.5447]
[1625167361219,1.3795,2094.7,2093.3,17.5447]
[1625167361372,0.77470132,2094.8,2093.4,0.04]
[1625167361469,12.72731,2095.0,2093.4,0.04]
[1625167361718,12.72731,2095.0,2093.3,4.36736026]
[1625167361870,12.72731,2095.0,2093.5,0.15]
[1625167362370,12.72731,2095.0,2093.6,7.15721]
[1625167362471,12.72731,2095.0,2093.3,1.22927026]
[1625167362472,13.80671,2095.0,2093.3,1.22927026]
[1625167362571,13.91959363,2095.0,2093.1,15.1703]
[1625167362968,15.24029363,2095.0,2093.1,15.1703]
[1625167363171,15.24029363,2095.0,2093.1,23.1703]
[1625167363524,7.15885,2094.2,2093.1,13.01]
[1625167363622,11.10835,2094.2,2093.1,13.01]
[1625167363722,3.9495,2094.2,2093.1,13.16]
[1625167363823,3.9495,2094.2,2093.2,0.1]
[1625167364123,1.21683694,2094.3,2093.1,13.16]
[1625167364226,3.3794,2094.2,2093.1,13.16]
[1625167364774,3.3794,2094.2,2093.3,7.15763]
[1625167364928,3.3794,2094.2,2093.1,5.01]
[1625167364929,3.3794,2094.2,2093.1,5.16]
[1625167365024,3.3794,2094.2,2093.1,0.15]
[1625167365721,15.0,2094.1,2093.1,0.15]
[1625167365823,22.15939,2094.1,2092.8,14.45144351]
[1625167365927,27.16939,2094.1,2092.2,18.39693727]
[1625167366079,0.27389143,2094.0,2092.1,14.73871637]
[1625167366170,0.27389143,2094.0,2092.1,14.58871637]
[1625167366270,2.66189143,2094.0,2092.1,4.22211637]
[1625167366424,3.5818336,2093.8,2092.1,4.22211637]
[1625167366522,15.10899793,2093.7,2092.1,4.22211637]
[1625167366620,27.65949793,2093.7,2092.1,4.22211637]
[1625167366722,0.15,2093.6,2092.1,4.22211637]
[1625167366821,0.0462656,2093.5,2092.1,4.22211637]
[1625167366923,0.16013954,2093.5,2092.1,4.22211637]
[1625167367021,7.16467,2092.8,2091.5,3.73914485]
[1625167367122,10.74758271,2092.8,2091.5,3.63914485]
[1625167367222,16.65838271,2092.8,2091.5,3.63914485]
[1625167367326,9.49371271,2092.8,2091.3,7.16394]
[1625167367429,9.49371271,2092.8,2091.2,0.15]
[1625167367527,9.49371271,2092.8,2091.1,34.5261411]
[1625167367694,0.01397474,2092.7,2091.2,18.88904714]
[1625167367791,0.01397474,2092.7,2091.3,3.65223159]
[1625167367894,0.90951271,2092.8,2091.3,20.68223159]
[1625167367990,0.90951271,2092.8,2091.4,0.15]
[1625167368092,0.90951271,2092.8,2091.9,7.16206]
[1625167368193,0.00871271,2092.8,2091.9,7.06206]
[1625167368288,10.8992,2093.3,2091.9,7.06206]
[1625167368589,0.2,2093.2,2091.9,7.06206]
[1625167368745,0.11301145,2092.7,2091.9,7.06206]
[1625167368992,3.25851145,2092.7,2091.9,7.06206]
[1625167369341,3.25851145,2092.7,2091.1,41.26609014]
[1625167369495,3.25851145,2092.7,2091.9,7.16206]
[1625167369642,0.04,2092.6,2091.4,6.87]
[1625167369922,3.25851145,2092.7,2091.5,0.15]
[1625167370725,3.25851145,2092.7,2091.8,7.16338]
[1625167370923,3.25851145,2092.7,2091.9,0.15]
[1625167371076,6.179,2093.2,2092.0,30.0]
[1625167371226,10.8992,2093.3,2092.1,0.14558506]
[1625167371571,10.8992,2093.3,2092.1,0.15162809]
[1625167371671,5.01,2093.6,2092.1,0.15162809]
[1625167371774,5.01,2093.6,2092.4,7.16085]
[1625167371876,58.0499,2093.7,2092.2,9.6978]
[1625167371974,58.0499,2093.7,2092.5,0.14203087]
[1625167371975,4.9411,2093.6,2092.5,0.14203087]
[1625167372176,4.9411,2093.6,2092.1,0.00604303]
[1625167372177,0.12,2093.5,2092.1,0.00604303]
[1625167372426,0.2,2093.4,2092.1,0.00604303]
[1625167372976,7.16405,2092.9,2092.1,0.00604303]
[1625167373075,11.00265,2092.9,2092.1,0.00604303]
[1625167373230,16.01265,2092.9,2092.1,0.00604303]
[1625167373324,16.01265,2092.9,2091.4,89.2557369]
[1625167373424,0.16,2092.8,2091.1,0.00659481]
[1625167373526,0.1695219,2092.8,2091.1,0.00659481]
[1625167373626,46.21857,2092.7,2091.1,0.00659481]
[1625167373828,0.2420265,2092.6,2091.1,0.00659481]
[1625167374223,2.4920265,2092.6,2091.1,0.00659481]
[1625167374327,7.16728,2092.0,2091.1,0.00659481]
[1625167374475,11.41308863,2092.0,2091.1,0.00659481]
[1625167374573,16.42308863,2092.0,2091.1,0.00659481]
[1625167374983,4.2381,2092.0,2091.1,0.00659481]
[1625167375237,48.29381142,2092.7,2091.2,0.15]
[1625167375238,37.71101142,2092.7,2091.2,0.15]
[1625167375387,26.81111142,2092.7,2092.3,2.82787722]
[1625167375681,0.2,2092.6,2092.3,2.77787722]
[1625167376232,0.2,2092.6,2091.2,0.15]
[1625167376433,0.2,2092.5,2091.1,0.00659481]
[1625167376682,7.167,2092.3,2091.1,0.00659481]
[1625167376965,12.177,2092.3,2091.1,0.00659481]
[1625167377116,0.1,2092.2,2091.1,0.00659481]
[1625167377766,2.094,2092.3,2091.1,0.00659481]
[1625167377867,7.104,2092.3,2091.1,0.00659481]
[1625167377969,7.1673,2092.2,2091.1,0.00659481]
[1625167378067,12.1773,2092.2,2091.1,0.00659481]
[1625167378565,7.1673,2092.2,2091.1,0.00659481]
[1625167378717,3.5929,2092.6,2091.1,0.00659481]
[1625167378870,3.5929,2092.6,2091.1,0.01396069]
[1625167379116,3.5929,2092.6,2091.3,7.1655]
[1625167379222,17.21911142,2092.7,2091.3,7.1655]
[1625167379316,17.21911142,2092.7,2091.3,10.36595527]
[1625167379420,17.21911142,2092.7,2091.3,3.20045527]
[1625167379518,17.21911142,2092.7,2091.3,3.15045527]
[1625167379615,17.21911142,2092.7,2091.3,5.59953542]
[1625167379717,17.21911142,2092.7,2091.4,0.15]
[1625167380120,17.21911142,2092.7,2091.5,2.44908015]
[1625167380270,0.08,2092.6,2091.6,0.15]
[1625167380367,11.04011142,2092.7,2091.6,0.15]
[1625167380770,11.04011142,2092.7,2091.7,7.16387]
[1625167380972,11.04011142,2092.7,2091.8,0.15]
[1625167381074,16.05011142,2092.7,2091.8,0.15]
[1625167381170,0.06,2092.6,2091.8,0.15]